fUST/lending_fUST_20260305
["ID","MTS","AMOUNT","RATE_DAILY","PERIOD"]
[407668812,1772650232700,-500.0,5.798e-05,2]
[407668813,1772650232710,-500.0,5.798e-05,2]
[407668814,1772650232720,-500.0,5.798e-05,2]
[407668815,1772650232730,-404.10927347,5.798e-05,2]
[407668816,1772650232740,-500.0,5.798e-05,2]
[407668817,1772650232750,-500.0,5.798e-05,2]
[407668818,1772650232760,-500.0,5.798e-05,2]
[407668819,1772650232771,-500.0,5.798e-05,2]
[407668820,1772650232780,-500.0,5.798e-05,2]
[407668821,1772650232791,-500.0,5.798e-05,2]
[407668822,1772650232802,-500.0,5.798e-05,2]
[407668823,1772650232813,-500.0,5.798e-05,2]
[407668824,1772650232823,-500.0,5.798e-05,2]
[407668825,1772650232834,-500.0,5.798e-05,2]
[407668826,1772650232844,-500.0,5.798e-05,2]
[407668827,1772650232854,-248.98241058,5.798e-05,2]
[407668828,1772650232864,-500.0,5.798e-05,2]
[407668829,1772650232874,-500.0,5.798e-05,2]
[407668830,1772650232885,-500.0,5.798e-05,2]
[407668831,1772650232895,-500.0,5.798e-05,2]
[407668832,1772650232905,-500.0,5.798e-05,2]
[407668833,1772650232915,-500.0,5.798e-05,2]
[407668834,1772650232924,-173.27,5.8e-05,2]
[407668835,1772650232934,-173.27,5.8e-05,2]
[407668836,1772650232943,-173.27,5.8e-05,2]
[407668837,1772650232953,-3104.33599468,5.8e-05,2]
[407668882,1772650243327,-357.33809351,5.797e-05,2]
[407668883,1772650243337,-500.0,5.797e-05,2]
[407668884,1772650243348,-500.0,5.797e-05,2]
[407668885,1772650243358,-509.25225169,5.797e-05,2]
[407668886,1772650243369,-500.0,5.797e-05,2]
[407668887,1772650243380,-500.0,5.797e-05,2]
[407668888,1772650243390,-500.0,5.797e-05,2]
[407668889,1772650243401,-500.0,5.797e-05,2]
[407668890,1772650243411,-500.0,5.797e-05,2]
[407668891,1772650243421,-500.0,5.797e-05,2]
[407668892,1772650243432,-500.0,5.797e-05,2]
[407668893,1772650243442,-500.0,5.797e-05,2]
[407668894,1772650243452,-500.0,5.797e-05,2]
[407668895,1772650243462,-500.0,5.797e-05,2]
[407668896,1772650243472,-500.0,5.797e-05,2]
[407668897,1772650243482,-500.0,5.797e-05,2]
[407668898,1772650243492,-500.0,5.797e-05,2]
[407668899,1772650243503,-500.0,5.797e-05,2]
[407668900,1772650243512,-500.0,5.797e-05,2]
[407668901,1772650243522,-500.0,5.797e-05,2]
[407668902,1772650243532,-500.0,5.797e-05,2]
[407668903,1772650243542,-500.0,5.797e-05,2]
[407668904,1772650243551,-500.0,5.797e-05,2]
[407668905,1772650243561,-500.0,5.797e-05,2]
[407668906,1772650243571,-500.0,5.797e-05,2]
[407668907,1772650243580,-500.0,5.797e-05,2]
[407668908,1772650243590,-500.0,5.797e-05,2]
[407668909,1772650243600,-500.0,5.797e-05,2]
[407668910,1772650243609,-500.0,5.797e-05,2]
[407668911,1772650243619,-500.0,5.797e-05,2]
[407668912,1772650243629,-450.64193024,5.797e-05,2]
[407668913,1772650243638,-500.0,5.797e-05,2]
[407668914,1772650243652,-500.0,5.797e-05,2]
[407668915,1772650243662,-500.0,5.797e-05,2]
[407668916,1772650243673,-500.0,5.797e-05,2]
[407668917,1772650243683,-138.47191323,5.797e-05,2]
[407668959,1772650246236,-361.52808677,5.797e-05,2]
[407668961,1772650246246,-500.0,5.797e-05,2]
[407668963,1772650246256,-500.0,5.797e-05,2]
[407668965,1772650246267,-344.65513579,5.797e-05,2]
[407668967,1772650246280,-155.34486421,5.797e-05,2]
[407668969,1772650246290,-500.0,5.797e-05,2]
[407668971,1772650246301,-500.0,5.797e-05,2]
[407668973,1772650246310,-500.0,5.797e-05,2]
[407668975,1772650246321,-500.0,5.797e-05,2]
[407668977,1772650246331,-500.0,5.797e-05,2]
[407668978,1772650246341,-500.0,5.797e-05,2]
[407668979,1772650246350,-500.0,5.797e-05,2]
[407668980,1772650246360,-500.0,5.797e-05,2]
[407668981,1772650246370,-500.0,5.797e-05,2]
[407668982,1772650246380,-500.0,5.797e-05,2]
[407668983,1772650246389,-500.0,5.797e-05,2]
[407668984,1772650246399,-285.92555456,5.797e-05,2]
[407668985,1772650246487,-214.07444544,5.797e-05,2]
[407668986,1772650246497,-500.0,5.797e-05,2]
[407668988,1772650246507,-500.0,5.797e-05,2]
[407668989,1772650246517,-595.52454696,5.797e-05,2]
[407668991,1772650246527,-500.0,5.797e-05,2]
[407668993,1772650246537,-500.0,5.797e-05,2]
[407668995,1772650246547,-6814.06058062,5.8e-05,2]
[407669164,1772650862492,-3199.00371677,4.656e-05,2]
[407669170,1772651329761,301.059312,4.354e-05,2]
[407669176,1772651408690,5000.0,4.5e-05,2]
[407669177,1772651430839,4698.940688,4.5e-05,2]
[407669243,1772651438375,-301.059312,4.5e-05,2]
[407669245,1772651438385,-301.059312,4.537e-05,2]
[407669247,1772651438395,-419.47952743,4.674e-05,2]
[407669249,1772651438405,-301.059312,4.721e-05,2]
[407669251,1772651438414,-300.0,4.796e-05,2]
[407669253,1772651438424,-300.0,4.796e-05,2]
[407669255,1772651438434,-300.0,4.796e-05,2]
[407669257,1772651438444,-1200.0,4.796e-05,2]
[407669260,1772651438453,-3504.5866443,4.799e-05,2]
[407669262,1772651438463,-300.0,4.893e-05,2]
[407669264,1772651438472,-300.0,4.893e-05,2]
[407669266,1772651438481,-300.0,4.893e-05,2]
[407669268,1772651438491,-300.0,4.893e-05,2]
[407669270,1772651438501,-300.0,4.893e-05,2]
[407669272,1772651438510,-300.0,4.893e-05,2]
[407669274,1772651438519,-300.0,4.893e-05,2]
[407669276,1772651438529,-300.0,4.893e-05,2]
[407669278,1772651438538,-300.0,4.893e-05,2]
[407669280,1772651438547,-300.0,4.893e-05,2]
[407669282,1772651438557,-300.0,4.893e-05,2]
[407669284,1772651438566,-300.0,4.893e-05,2]
[407669286,1772651438580,-300.0,4.893e-05,2]
[407669288,1772651438590,-300.0,4.893e-05,2]
[407669290,1772651438601,-300.0,4.893e-05,2]
[407669292,1772651438611,-301.059312,4.904e-05,2]
[407669294,1772651438620,-173.04,5e-05,2]
[407669296,1772651438629,-301.059312,5.087e-05,2]
[407669298,1772651438639,-8164.03620063,5.177e-05,2]
[407669391,1772651440842,-1985.53318341,4.455e-05,2]
[407669392,1772651440853,-34814.79198296,5.177e-05,2]
[407669444,1772651446363,-335.01,5.177e-05,2]
[407669543,1772652632461,-5000.0,4.77e-05,2]
[407669545,1772652632471,-1200.0,4.818e-05,2]
[407669547,1772652632481,-3501.0037167,4.819e-05,2]
[407669549,1772652632492,-160.16377404,4.853e-05,2]
[407669552,1772652632502,-419.65074356,4.859e-05,2]
[407669553,1772652632512,-300.0,4.898e-05,2]
[407669555,1772652632522,-300.0,4.898e-05,2]
[407669557,1772652632532,-300.0,4.898e-05,2]
[407669559,1772652632541,-168.67,5e-05,2]
[407669561,1772652632551,-433.78991927,5.179e-05,2]
[407669563,1772652632561,-194.33137895,5.179e-05,2]
[407669565,1772652632571,-500.0,5.179e-05,2]
[407669567,1772652632581,-500.0,5.179e-05,2]
[407669570,1772652632592,-272.2935478,5.179e-05,2]
[407669571,1772652632603,-432.23571371,5.18e-05,2]
[407669708,1772652646074,-1898.9275318,5.128e-05,2]
[407669709,1772652646084,-58302.83604351,5.18e-05,2]
[407669711,1772652646094,-301.059312,5.27e-05,2]
[407669712,1772652646103,-300.0,5.28e-05,2]
[407669713,1772652646113,-300.0,5.28e-05,2]
[407669714,1772652646122,-300.0,5.28e-05,2]
[407669715,1772652646134,-300.0,5.28e-05,2]
[407669716,1772652646143,-300.0,5.28e-05,2]
[407669718,1772652646152,-300.0,5.28e-05,2]
[407669721,1772652646161,-300.0,5.28e-05,2]
[407669722,1772652646171,-300.0,5.28e-05,2]
[407669723,1772652646180,-300.0,5.28e-05,2]
[407669724,1772652646192,-300.0,5.28e-05,2]
[407669725,1772652646201,-300.0,5.28e-05,2]
[407669727,1772652646210,-300.0,5.28e-05,2]
[407669728,1772652646219,-300.0,5.28e-05,2]
[407669729,1772652646229,-300.0,5.28e-05,2]
[407669730,1772652646238,-300.0,5.28e-05,2]
[407669731,1772652646248,-1680.0,5.3e-05,2]
[407669732,1772652646258,-600.0,5.382e-05,2]
[407669733,1772652646267,-180.0,5.388e-05,2]
[407669734,1772652646277,-420.0,5.388e-05,2]
[407669735,1772652646287,-168.67,5.5e-05,2]
[407669736,1772652646296,-240.0,5.83e-05,2]
[407669737,1772652646306,-173.27,5.9e-05,2]
[407669738,1772652646315,-173.27,5.9e-05,2]
[407669739,1772652646326,-173.27,5.9e-05,2]
[407669740,1772652646337,-720.0,5.92e-05,2]
[407669741,1772652646347,-151.0,5.92e-05,2]
[407669742,1772652646356,-587.0,5.927e-05,2]
[407669744,1772652646367,-173.27,6e-05,2]
[407669745,1772652646377,-173.27,6e-05,2]
[407669747,1772652646387,-173.27,6e-05,2]
[407669748,1772652646397,-168.67,6e-05,2]
[407669749,1772652646408,-173.27,6.1e-05,2]
[407669750,1772652646418,-173.27,6.1e-05,2]
[407669751,1772652646428,-173.27,6.1e-05,2]
[407669752,1772652646437,-173.27,6.2e-05,2]
[407669753,1772652646448,-173.27,6.2e-05,2]
[407669754,1772652646458,-173.27,6.2e-05,2]
[407669755,1772652646467,-173.27,6.3e-05,2]
[407669756,1772652646477,-173.27,6.3e-05,2]
[407669757,1772652646487,-173.27,6.3e-05,2]
[407669758,1772652646496,-173.27,6.3e-05,2]
[407669759,1772652646696,-173.27,6.4e-05,2]
[407669760,1772652646772,-173.27,6.4e-05,2]
[407669761,1772652646791,-173.27,6.4e-05,2]
[407669762,1772652646800,-173.27,6.5e-05,2]
[407669763,1772652646811,-173.27,6.5e-05,2]
[407669764,1772652646821,-168.67,6.5e-05,2]
[407669765,1772652646831,-864.0,6.512e-05,2]
[407669766,1772652646841,-823.0,6.519e-05,2]
[407669767,1772652646852,-470.03004326,6.852e-05,2]
[407669768,1772652646861,-495.1878774,6.859e-05,2]
[407669769,1772652646871,-209.1113528,6.861e-05,2]
[407669770,1772652646881,-182.9724337,6.926e-05,2]
[407669771,1772652646891,-500.0,6.95e-05,2]
[407669772,1772652646901,-500.0,6.95e-05,2]
[407669773,1772652646911,-500.0,6.95e-05,2]
[407669774,1772652646920,-500.0,6.95e-05,2]
[407669775,1772652646930,-387.51386818,6.95e-05,2]
[407669776,1772652646940,-500.0,6.95e-05,2]
[407669777,1772652646950,-575.22632677,6.95e-05,2]
[407669778,1772652646959,-151.0,6.95e-05,2]
[407669779,1772652646970,-241.96306954,6.964e-05,2]
[407669780,1772652646980,-326.73648875,6.999e-05,2]
[407669781,1772652646989,-168.67,7e-05,2]
[407669782,1772652646999,-1390.0,7.131e-05,2]
[407669783,1772652647008,-1607.158,7.131e-05,2]
[407669784,1772652647018,-1000.0,7.163e-05,2]
[407669785,1772652647028,-1152.0,7.171e-05,2]
[407669786,1772652647038,-196.85526758,7.331e-05,2]
[407669787,1772652647047,-354.33948165,7.331e-05,2]
[407669788,1772652647057,-629.93685626,7.331e-05,2]
[407669789,1772652647066,-984.27633791,7.331e-05,2]
[407669790,1772652647076,-1417.35792659,7.331e-05,2]
[407669791,1772652647086,-1927.25244068,7.331e-05,2]
[407669792,1772652647096,-154.12185686,7.331e-05,2]
[407669793,1772652647106,-277.41934234,7.331e-05,2]
[407669794,1772652647115,-493.18994195,7.331e-05,2]
[407669795,1772652647125,-770.60928429,7.331e-05,2]
[407669796,1772652647134,-1108.56769201,7.331e-05,2]
[407669797,1772652647144,-151.0,7.331e-05,2]
[407669798,1772652647153,-168.67,7.5e-05,2]
[407669799,1772652647164,-1000.0,7.879e-05,2]
[407669800,1772652647173,-244.0,7.879e-05,2]
[407669801,1772652647182,-1613.0,7.888e-05,2]
[407669802,1772652647192,-162.380719,7.903e-05,2]
[407669803,1772652647202,-168.3888056,7.903e-05,2]
[407669804,1772652647211,-174.61919141,7.903e-05,2]
[407669805,1772652647220,-181.08010149,7.903e-05,2]
[407669806,1772652647230,-187.78006525,7.903e-05,2]
[407669807,1772652647239,-194.72792766,7.903e-05,2]
[407669808,1772652647249,-201.93286099,7.903e-05,2]
[407669809,1772652647258,-209.40437684,7.903e-05,2]
[407669810,1772652647268,-217.15233878,7.903e-05,2]
[407669811,1772652647277,-225.18697532,7.903e-05,2]
[407669812,1772652647287,-233.51889341,7.903e-05,2]
[407669813,1772652647296,-2150.738,7.903e-05,2]
[407669814,1772652647306,-242.15909246,7.903e-05,2]
[407669815,1772652647316,-251.11897888,7.903e-05,2]
[407669816,1772652647329,-297.28661347,7.903e-05,2]
[407669817,1772652647339,-3369.36660757,8e-05,2]
[407669818,1772652647349,-168.67,8e-05,2]
[407669819,1772652647358,-150.0,8.219e-05,2]
[407669820,1772652647369,-500.0,8.219e-05,2]
[407669821,1772652647378,-376.74360784,8.219e-05,2]
[407669822,1772652647388,-500.0,8.219e-05,2]
[407669823,1772652647399,-626.12180841,8.219e-05,2]
[407669824,1772652647408,-151.339175,8.219e-05,2]
[407669825,1772652647418,-150.0,8.274e-05,2]
[407669826,1772652647428,-203.09416946,8.329e-05,2]
[407669827,1772652647437,-2230.315306,8.451e-05,2]
[407669828,1772652647448,-172.745,8.598e-05,2]
[407669829,1772652647457,-975.0,8.6e-05,2]
[407669830,1772652647467,-1000.0,8.667e-05,2]
[407669831,1772652647476,-492.0,8.667e-05,2]
[407669832,1772652647486,-1683.0,8.677e-05,2]
[407669833,1772652647496,-6866.95008247,8.679e-05,2]
[407669834,1772652647505,-570.72501124,8.859e-05,2]
[407669835,1772652647515,-212.07565535,8.9e-05,2]
[407669836,1772652647524,-2312.83697232,8.999e-05,2]
[407669837,1772652647536,-1455.20504537,9.246e-05,2]
[407669838,1772652647546,-10032.84522836,9.357e-05,2]
[407669839,1772652647557,-500.0,9.437e-05,2]
[407669840,1772652647567,-2836.38780268,9.502e-05,2]
[407669841,1772652647577,-1000.0,9.534e-05,2]
[407669842,1772652647587,-791.0,9.534e-05,2]
[407669843,1772652647597,-2398.4119403,9.547e-05,2]
[407669844,1772652647606,-431.82143051,9.8e-05,2]
[407669845,1772652647617,-23882.84191226,9.9e-05,2]
[407669846,1772652647627,-109139.85952849,0.0001,2]
[407669847,1772652647641,-280359.80054945,0.0001,2]
[407669848,1772652647653,-60567.30604129,0.0001,2]
[407669849,1772652647815,-302.0,0.0001,2]
[407669850,1772652667191,-340.12470618,6.813e-05,2]
[407669851,1772652667208,-488.03680147,6.813e-05,2]
[407669852,1772652667217,-340.12470618,6.882e-05,2]
[407669872,1772653831476,-617.61667713,4.595e-05,2]
[407669874,1772653831488,-4221.77746224,4.595e-05,2]
[407669880,1772653831536,-160.60586063,4.595e-05,2]
[407669882,1772653831547,-827.24341542,4.641e-05,2]
[407669884,1772653831560,-1163.20743793,4.641e-05,2]
[407669990,1772653837740,-454.1514009,4.641e-05,2]
[407670022,1772653845757,-561.0,4.595e-05,2]
[407670023,1772654026974,163.367388,4.794e-05,120]
[407670024,1772654443522,-126.01922688,4.283e-05,2]
[407670025,1772654443566,-983.15880318,4.283e-05,2]
[407670036,1772654997457,340.12470618,4e-05,2]
[407670077,1772655031785,-5000.0,4.073e-05,2]
[407670079,1772655031795,-38.00384125,4.135e-05,2]
[407670080,1772655031808,-371.14848146,4.135e-05,2]
[407670081,1772655031818,-16.87732102,4.794e-05,2]
[407670092,1772655037878,-2990.97604287,4.746e-05,2]
[407670093,1772655037888,-146.49006698,4.794e-05,2]
[407670094,1772655037897,-300.0,5.079e-05,2]
[407670095,1772655037907,-300.0,5.079e-05,2]
[407670096,1772655037917,-300.0,5.079e-05,2]
[407670097,1772655037927,-1200.0,5.079e-05,2]
[407670098,1772655037936,-300.0,5.079e-05,2]
[407670099,1772655037946,-300.0,5.079e-05,2]
[407670100,1772655037956,-398.51273128,5.13e-05,2]
[407670101,1772655037967,-300.0,5.183e-05,2]
[407670102,1772655037977,-300.0,5.183e-05,2]
[407670103,1772655037987,-300.0,5.183e-05,2]
[407670104,1772655037996,-300.0,5.183e-05,2]
[407670105,1772655038006,-300.0,5.183e-05,2]
[407670106,1772655038016,-300.0,5.183e-05,2]
[407670107,1772655038025,-300.0,5.183e-05,2]
[407670108,1772655038035,-300.0,5.183e-05,2]
[407670109,1772655038049,-300.0,5.183e-05,2]
[407670110,1772655038059,-300.0,5.183e-05,2]
[407670111,1772655038069,-300.0,5.183e-05,2]
[407670112,1772655038078,-300.0,5.183e-05,2]
[407670113,1772655038089,-300.0,5.183e-05,2]
[407670114,1772655038098,-300.0,5.183e-05,2]
[407670115,1772655038108,-300.0,5.183e-05,2]
[407670116,1772655038118,-600.0,5.286e-05,2]
[407670117,1772655038129,-9859.56419008,5.379e-05,2]
[407670118,1772655038139,-5849.435183,5.479e-05,2]
[407670119,1772655038148,-316.0,5.587e-05,2]
[407670120,1772655038158,-420.0,5.587e-05,2]
[407670121,1772655038168,-720.0,5.814e-05,2]
[407670122,1772655038178,-482.7997408,6.135e-05,2]
[407670123,1772655038188,-864.0,6.396e-05,2]
[407670124,1772655038198,-500.0,7.034e-05,2]
[407670125,1772655038208,-500.0,7.034e-05,2]
[407670126,1772655038218,-500.0,7.034e-05,2]
[407670127,1772655038227,-500.0,7.034e-05,2]
[407670128,1772655038238,-500.0,7.034e-05,2]
[407670129,1772655038248,-588.19154786,7.034e-05,2]
[407670130,1772655038258,-500.0,7.034e-05,2]
[407670131,1772655038271,-500.0,7.034e-05,2]
[407670132,1772655038281,-500.0,7.034e-05,2]
[407670133,1772655038292,-500.0,7.034e-05,2]
[407670134,1772655038301,-500.0,7.034e-05,2]
[407670135,1772655038311,-1000.0,7.035e-05,2]
[407670136,1772655038320,-638.0,7.434e-05,2]
[407670137,1772655038330,-494.263,7.434e-05,2]
[407670138,1772655038339,-2150.738,7.44e-05,2]
[407670139,1772655038349,-1000.0,7.739e-05,2]
[407670140,1772655038359,-244.0,7.739e-05,2]
[407670141,1772655038368,-1237.02949713,7.988e-05,2]
[407670148,1772655042998,-806.99127554,7.988e-05,2]
[407670169,1772655046778,-186.29453333,7.988e-05,2]
[407670170,1772655046790,-1838.81944011,8e-05,2]
[407670171,1772655146359,10000.0,4e-05,2]
[407670202,1772656232030,-2897.10470365,4.659e-05,2]
[407670245,1772656240615,-2102.89529635,4.659e-05,2]
[407670246,1772656240624,-223.26917818,4.706e-05,2]
[407670422,1772656243034,-2759.60785226,4.706e-05,2]
[407670442,1772656244675,-652.88048012,4.706e-05,2]
[407670443,1772656244687,-1364.24248944,4.706e-05,2]
[407670444,1772656244697,-1200.0,4.753e-05,2]
[407670445,1772656244707,-300.0,4.873e-05,2]
[407670446,1772656244717,-300.0,4.873e-05,2]
[407670447,1772656244727,-394.63262596,4.876e-05,2]
[407670448,1772656244736,-4033.924037,6.143e-05,2]
[407670449,1772656244746,-250.3304907,6.143e-05,2]
[407670450,1772656244755,-500.0,6.555e-05,2]
[407670451,1772656244765,-500.0,6.555e-05,2]
[407670452,1772656244775,-500.0,6.555e-05,2]
[407670453,1772656244785,-500.0,6.555e-05,2]
[407670454,1772656244795,-500.0,6.555e-05,2]
[407670455,1772656244804,-500.0,6.555e-05,2]
[407670456,1772656244813,-500.0,6.555e-05,2]
[407670457,1772656244823,-500.0,6.555e-05,2]
[407670458,1772656244832,-500.0,6.555e-05,2]
[407670460,1772656244841,-500.0,6.555e-05,2]
[407670462,1772656244850,-500.0,6.555e-05,2]
[407670465,1772656244860,-500.0,6.555e-05,2]
[407670468,1772656244870,-30.44665275,6.555e-05,2]
[407670471,1772656244882,-469.55334725,6.555e-05,2]
[407670473,1772656244892,-500.0,6.555e-05,2]
[407670474,1772656244901,-478.02347279,6.555e-05,2]
[407670475,1772656244911,-500.0,6.555e-05,2]
[407670476,1772656244920,-161.66303444,6.555e-05,2]
[407670477,1772656244930,-500.0,6.555e-05,2]
[407670478,1772656244940,-500.0,6.555e-05,2]
[407670479,1772656244949,-500.0,6.555e-05,2]
[407670480,1772656244959,-500.0,6.555e-05,2]
[407670481,1772656244968,-500.0,6.555e-05,2]
[407670482,1772656244978,-500.0,6.555e-05,2]
[407670483,1772656244988,-500.0,6.555e-05,2]
[407670484,1772656244997,-500.0,6.555e-05,2]
[407670485,1772656245007,-500.0,6.555e-05,2]
[407670486,1772656245016,-500.0,6.555e-05,2]
[407670487,1772656245026,-500.0,6.555e-05,2]
[407670488,1772656245035,-500.0,6.555e-05,2]
[407670489,1772656245045,-237.93097594,6.555e-05,2]
[407670490,1772656245056,-303.37842809,6.555e-05,2]
[407670491,1772656245070,-196.62157191,6.555e-05,2]
[407670492,1772656245079,-646.0952716,6.555e-05,2]
[407670493,1772656245088,-500.0,6.555e-05,2]
[407670494,1772656245098,-500.0,6.555e-05,2]
[407670495,1772656245108,-500.0,6.555e-05,2]
[407670496,1772656245118,-493.35793215,6.555e-05,2]
[407670506,1772656246149,-6.64206785,6.555e-05,2]
[407670508,1772656246159,-500.0,6.555e-05,2]
[407670509,1772656246169,-464.67093215,6.555e-05,2]
[407670510,1772656246487,-35.32906785,6.555e-05,2]
[407670511,1772656246499,-500.0,6.555e-05,2]
[407670512,1772656246509,-500.0,6.555e-05,2]
[407670513,1772656246520,-500.0,6.555e-05,2]
[407670514,1772656246530,-500.0,6.555e-05,2]
[407670515,1772656246542,-500.0,6.555e-05,2]
[407670516,1772656246553,-500.0,6.555e-05,2]
[407670517,1772656246564,-378.98974336,6.555e-05,2]
[407670518,1772656246575,-500.0,6.555e-05,2]
[407670519,1772656246584,-500.0,6.555e-05,2]
[407670520,1772656246595,-500.0,6.555e-05,2]
[407670521,1772656246605,-500.0,6.555e-05,2]
[407670522,1772656246615,-500.0,6.555e-05,2]
[407670523,1772656246625,-500.0,6.555e-05,2]
[407670524,1772656246637,-500.0,6.555e-05,2]
[407670525,1772656246647,-500.0,6.555e-05,2]
[407670526,1772656246658,-500.0,6.555e-05,2]
[407670527,1772656246668,-500.0,6.555e-05,2]
[407670528,1772656246678,-500.0,6.555e-05,2]
[407670529,1772656246688,-500.0,6.555e-05,2]
[407670530,1772656246698,-500.0,6.555e-05,2]
[407670531,1772656246709,-500.0,6.555e-05,2]
[407670532,1772656246719,-500.0,6.555e-05,2]
[407670533,1772656246728,-500.0,6.555e-05,2]
[407670534,1772656246738,-500.0,6.555e-05,2]
[407670535,1772656246748,-500.0,6.555e-05,2]
[407670536,1772656246758,-500.0,6.555e-05,2]
[407670537,1772656246768,-500.0,6.555e-05,2]
[407670538,1772656246778,-500.0,6.555e-05,2]
[407670539,1772656246787,-500.0,6.555e-05,2]
[407670540,1772656246797,-500.0,6.555e-05,2]
[407670541,1772656246807,-500.0,6.555e-05,2]
[407670542,1772656246817,-500.0,6.555e-05,2]
[407670543,1772656246826,-500.0,6.555e-05,2]
[407670544,1772656246836,-500.0,6.555e-05,2]
[407670545,1772656246846,-500.0,6.555e-05,2]
[407670546,1772656246856,-500.0,6.555e-05,2]
[407670547,1772656246865,-5500.63019253,6.559e-05,2]
[407670580,1772657432025,-1297.01723482,4.088e-05,2]
[407670587,1772657432082,-3702.98276518,4.088e-05,2]
[407670589,1772657432091,-1887.85513745,4.129e-05,2]
[407670744,1772657438258,-3112.14486255,4.129e-05,2]
[407670745,1772657438268,-394.96938106,4.192e-05,2]
[407670746,1772657438279,-1200.0,4.361e-05,2]
[407670747,1772657438289,-300.0,4.727e-05,2]
[407670748,1772657438299,-300.0,4.727e-05,2]
[407670749,1772657438308,-300.0,4.727e-05,2]
[407670750,1772657438318,-1680.0,4.797e-05,2]
[407670751,1772657438328,-420.0,5.2e-05,2]
[407670752,1772657438338,-420.0,5.2e-05,2]
[407670754,1772657438347,-429.917212,5.588e-05,2]
[407670756,1772657438356,-429.917212,5.823e-05,2]
[407670757,1772657438366,-429.917212,6.059e-05,2]
[407670758,1772657438375,-466.06386965,6.192e-05,2]
[407670759,1772657438385,-383.89119147,6.294e-05,2]
[407670760,1772657438405,-46.02602053,6.294e-05,2]
[407670761,1772657438414,-429.917212,6.529e-05,2]
[407670762,1772657438424,-51.24650541,6.556e-05,2]
[407670765,1772657440715,-3405.31625559,6.556e-05,2]
[407670766,1772657440726,-3025.4430278,6.556e-05,2]
[407670767,1772657440738,-233.32,6.556e-05,2]
[407670768,1772657440748,-233.32,6.556e-05,2]
[407670769,1772657440758,-233.32,6.556e-05,2]
[407670770,1772657440768,-233.32,6.556e-05,2]
[407670771,1772657440778,-151.0,6.556e-05,2]
[407670772,1772657440788,-151.0,6.556e-05,2]
[407670773,1772657440798,-151.0,6.556e-05,2]
[407670774,1772657440808,-415.1473564,6.556e-05,2]
[407670775,1772657440818,-574.12624337,6.559e-05,2]
[407670777,1772657441118,-316.82840942,6.686e-05,2]
[407670792,1772657445350,-3896.11847603,6.49e-05,2]
[407670793,1772657445362,-806.99127554,6.49e-05,2]
[407670797,1772657446270,-296.89024843,6.49e-05,2]
[407670798,1772657446287,-283.17159058,6.686e-05,2]
[407670799,1772657446302,-151.0,6.764e-05,2]
[407670800,1772657446315,-151.0,6.764e-05,2]
[407670801,1772657446327,-151.0,6.764e-05,2]
[407670802,1772657446347,-429.917212,6.764e-05,2]
[407670803,1772657446359,-231.94423299,7.047e-05,2]
[407670804,1772657446371,-265.07912342,7.047e-05,2]
[407670805,1772657446385,-414.18613034,7.047e-05,2]
[407670806,1772657446397,-595.83159966,7.047e-05,2]
[407670807,1772657446410,-376.24386383,7.047e-05,2]
[407670808,1772657446423,-429.99298724,7.047e-05,2]
[407670809,1772657446436,-671.86404255,7.047e-05,2]
[407670810,1772657446448,-966.51673706,7.047e-05,2]
[407670811,1772657446461,-294.58582576,7.047e-05,2]
[407670812,1772657446473,-500.0,7.309e-05,2]
[407670813,1772657446486,-500.0,7.309e-05,2]
[407670814,1772657446499,-405.12169684,7.309e-05,2]
[407670815,1772657446511,-415.32566399,7.309e-05,2]
[407670816,1772657446524,-151.0,7.31e-05,2]
[407670817,1772657446540,-151.0,7.31e-05,2]
[407670818,1772657446552,-180.635411,7.31e-05,2]
[407670819,1772657446565,-3456.562761,7.311e-05,2]
[407670820,1772657446578,-233.32,7.354e-05,2]
[407670821,1772657446591,-233.32,7.354e-05,2]
[407670822,1772657446604,-233.32,7.354e-05,2]
[407670823,1772657446616,-233.32,7.354e-05,2]
[407670824,1772657446629,-720.0,7.355e-05,2]
[407670825,1772657446642,-233.32,7.355e-05,2]
[407670826,1772657446655,-233.32,7.355e-05,2]
[407670827,1772657446667,-233.32,7.355e-05,2]
[407670828,1772657446681,-233.32,7.355e-05,2]